Workbook

Sheet Лист1
A1: Школа | C1: МБОУ "Билярская СОШ" | F1: Утвердил: | G1: должность | H1: директор
A2: Типовое примерное меню приготавливаемых блюд | G2: фамилия | H2: М.А.Климова
A3: Возрастная категория | E3: 7-11 лет | G3: дата | H3: 27 | I3: 10 | J3: 2025
H4: день | I4: месяц | J4: год
A5: Неделя | B5: День недели | C5: Прием пищи | D5: Раздел меню | E5: Блюда | F5: Вес блюда, г | G5: Белки | H5: Жиры | I5: Углеводы | J5: Калорийность | K5: № рецептуры | L5: Цена
A6: 1 | B6: 1 | C6: Завтрак | D6: закуска | E6: Яйцо отварное | F6: 60 | G6: 7 | H6: 6 | I6: 0 | J6: 80 | K6: 209 | L6: 15
D7: гор.блюдо | E7: Каша пшеничная молочная с маслом | F7: 220 | G7: 12 | H7: 13 | I7: 16 | J7: 232 | K7: 175 | L7: 24.56
D8: фрукты | E8: фрукт | F8: 100 | G8: 1 | H8: 0 | I8: 15 | J8: 69 | K8: 338 | L8: 30
D9: гор.напиток | E9: Чай с лимоном | F9: 220 | G9: 0 | H9: 0 | I9: 16 | J9: 62 | K9: 377 | L9: 15
D10: хлеб бел. | E10: Хлеб пшеничный | F10: 40 | G10: 3 | H10: 0 | I10: 20 | J10: 94 | L10: 13
D13: итого | F13: =SUM(F6:F12) -> 640 | G13: =SUM(G6:G12) -> 23 | H13: =SUM(H6:H12) -> 19 | I13: =SUM(I6:I12) -> 67 | J13: =SUM(J6:J12) -> 537 | L13: =SUM(L6:L12) -> 97.56
A14: =A6 -> 1 | B14: =B6 -> 1 | C14: Обед | D14: закуска | E14: Салат из белокочанной капусты | F14: 60 | G14: 1 | H14: 3 | I14: 19 | J14: 106 | K14: 45 | L14: 20
D15: 1 блюдо | E15: Рассольник Ленинградский на мкб со сметаной | F15: 250 | G15: 7 | H15: 8 | I15: 19 | J15: 191 | K15: 96 | L15: 22
D16: 2 блюдо | E16: Куриная грудка в сметанном соусе | F16: 100 | G16: 10 | H16: 12 | I16: 17 | J16: 221 | K16: 279 | L16: 35
D17: гарнир | E17: Пюре картофельное | F17: 150 | G17: 3 | H17: 7 | I17: 21 | J17: 146 | K17: 312 | L17: 17
D18: напиток | E18: Чай с сахаром и яблоками | F18: 200 | G18: 0 | H18: 1 | I18: 16 | J18: 66 | K18: 359 | L18: 16
D19: хлеб бел. | F19: 50 | G19: 3 | H19: 1 | I19: 16 | J19: 77 | L19: 13
D20: хлеб черн. | E20: Хлеб ржано-пшеничный
D23: итого | F23: =SUM(F14:F22) -> 810 | G23: =SUM(G14:G22) -> 24 | H23: =SUM(H14:H22) -> 32 | I23: =SUM(I14:I22) -> 108 | J23: =SUM(J14:J22) -> 807 | L23: =SUM(L14:L22) -> 123
A24: =A6 -> 1 | B24: =B6 -> 1 | C24: Итого за день: | F24: =F13+F23 -> 1450 | G24: =G13+G23 -> 47 | H24: =H13+H23 -> 51 | I24: =I13+I23 -> 175 | J24: =J13+J23 -> 1344 | L24: =L13+L23 -> 220.56
A25: 1 | B25: 2 | C25: Завтрак | D25: закуска | E25: Сырники из творога | F25: 60 | G25: 9 | H25: 6 | I25: 10 | J25: 140 | K25: 219 | L25: 22
D26: гарнир | E26: Каша гречневая молочная с маслом | F26: 210 | G26: 8 | H26: 13 | I26: 16 | J26: 224 | K26: 175 | L26: 27.56
D27: гор.напиток | E27: Чай с сахаром и курягой | F27: 222 | G27: 0 | H27: 2 | I27: 16 | J27: 74 | K27: 377 | L27: 25
D28: хлеб бел. | E28: Хлеб пшеничный | F28: 40 | G28: 3 | H28: 0 | I28: 20 | J28: 94 | L28: 16
D29: хлеб черн.
D32: итого | F32: =SUM(F25:F31) -> 532 | G32: =SUM(G25:G31) -> 20 | H32: =SUM(H25:H31) -> 21 | I32: =SUM(I25:I31) -> 62 | J32: =SUM(J25:J31) -> 532 | L32: =SUM(L25:L31) -> 90.56
A33: =A25 -> 1 | B33: =B25 -> 2 | C33: Обед | D33: закуска | E33: Салат "Витаминный" | F33: 60 | G33: 1 | H33: 3 | I33: 19 | J33: 106 | K33: 49 | L33: 20
D34: 1 блюдо | E34: Суп картофельный с крупой (гречневый) на мкб | F34: 250 | G34: 7 | H34: 8 | I34: 19 | J34: 192 | K34: 101 | L34: 25
D35: 2 блюдо | E35: Жаркое по-домашнему из говядины | F35: 200 | G35: 10 | H35: 12 | I35: 17 | J35: 237 | K35: 259 | L35: 42
D36: гарнир
D37: напиток | E37: Компот из свежих фруктов | F37: 200 | G37: 0 | H37: 1 | I37: 16 | J37: 77 | K37: 342 | L37: 27
D38: хлеб бел.
D39: хлеб черн. | E39: Хлеб ржано-пшеничный | F39: 50 | G39: 3 | H39: 1 | I39: 16 | J39: 93 | L39: 16
D42: итого | F42: =SUM(F33:F41) -> 760 | G42: =SUM(G33:G41) -> 21 | H42: =SUM(H33:H41) -> 25 | I42: =SUM(I33:I41) -> 87 | J42: =SUM(J33:J41) -> 705 | L42: =SUM(L33:L41) -> 130
A43: =A25 -> 1 | B43: =B25 -> 2 | C43: Итого за день: | F43: =F32+F42 -> 1292 | G43: =G32+G42 -> 41 | H43: =H32+H42 -> 46 | I43: =I32+I42 -> 149 | J43: =J32+J42 -> 1237 | L43: =L32+L42 -> 220.56
A44: 1 | B44: 3 | C44: Завтрак | D44: закуска | E44: Сыр | F44: 60 | G44: 7 | H44: 10 | I44: 1 | J44: 110 | K44: 219 | L44: 22
D45: гарнир | E45: Макароны отварные сосливочном маслом | F45: 150 | G45: 5 | H45: 6 | I45: 34 | J45: 189 | K45: 175 | L45: 17.56
D46: гор.блюдо | E46: Котлета куринная | F46: 90 | G46: 11 | H46: 11 | I46: 7 | J46: 154 | K46: 37 | L46: 25
D47: гор.напиток | E47: Чай с сахаром | F47: 215 | G47: 0 | H47: 0 | I47: 15 | J47: 54 | K47: 50 | L47: 16
D48: хлеб бел. | E48: Хлеб пшеничный | F48: 40 | G48: 3 | H48: 0 | I48: 20 | J48: 83 | K48: 51 | L48: 10
D51: итого | F51: =SUM(F44:F50) -> 555 | G51: =SUM(G44:G50) -> 26 | H51: =SUM(H44:H50) -> 27 | I51: =SUM(I44:I50) -> 77 | J51: =SUM(J44:J50) -> 590 | L51: =SUM(L44:L50) -> 90.56
A52: =A44 -> 1 | B52: =B44 -> 3 | C52: Обед | D52: закуска | E52: Помидоры свежие с маслом | F52: 60 | G52: 1 | H52: 0 | I52: 2 | J52: 13 | K52: 23 | L52: 20
D53: 1 блюдо | E53: Борщ с капустой и картофелем на мкб со сметаной | F53: 250 | G53: 8 | H53: 8 | I53: 23 | J53: 184 | K53: 82 | L53: 25
D54: 2 блюдо | E54: Рыба припущенная с овощами в сметанном соусе | F54: 120 | G54: 9 | H54: 6 | I54: 10 | J54: 135 | K54: 229 | L54: 32
D55: гарнир | E55: Рис отварной | F55: 150 | G55: 4 | H55: 5 | I55: 32 | J55: 180 | K55: 304 | L55: 27
D56: напиток | E56: Компот из сухофруктов | F56: 200 | G56: 1 | H56: 0 | I56: 18 | J56: 71 | K56: 349 | L56: 16
D57: хлеб бел.
D58: хлеб черн. | E58: Хлеб ржано-пшеничный | F58: 50 | G58: 3 | H58: 3 | I58: 24 | J58: 122 | L58: 10
D61: итого | F61: =SUM(F52:F60) -> 830 | G61: =SUM(G52:G60) -> 26 | H61: =SUM(H52:H60) -> 22 | I61: =SUM(I52:I60) -> 109 | J61: =SUM(J52:J60) -> 705 | L61: =SUM(L52:L60) -> 130
A62: =A44 -> 1 | B62: =B44 -> 3 | C62: Итого за день: | F62: =F51+F61 -> 1385 | G62: =G51+G61 -> 52 | H62: =H51+H61 -> 49 | I62: =I51+I61 -> 186 | J62: =J51+J61 -> 1295 | L62: =L51+L61 -> 220.56
A63: 1 | B63: 4 | C63: Завтрак | D63: фрукты | E63: Фрукт | F63: 200 | G63: 1 | H63: 0 | I63: 15 | J63: 104 | K63: 338 | L63: 20
D64: гор.блюдо | E64: Омлет натуральный | F64: 155 | G64: 10 | H64: 9 | I64: 11 | J64: 204 | K64: 210 | L64: 34.56
D65: гор.блюдо
D66: гор.напиток | E66: Кисель ягодный | F66: 200 | G66: 0 | H66: 0 | I66: 36 | J66: 118 | K66: 359 | L66: 25
D67: хлеб бел. | E67: Хлеб пшеничный | F67: 40 | G67: 2 | H67: 0 | I67: 10 | J67: 47 | L67: 18
D70: итого | F70: =SUM(F63:F69) -> 595 | G70: =SUM(G63:G69) -> 13 | H70: =SUM(H63:H69) -> 9 | I70: =SUM(I63:I69) -> 72 | J70: =SUM(J63:J69) -> 473 | L70: =SUM(L63:L69) -> 97.56
A71: =A63 -> 1 | B71: =B63 -> 4 | C71: Обед | D71: закуска | E71: Салат из свежих огурцов | F71: 100 | G71: 1 | H71: 6 | I71: 2 | J71: 65 | K71: 20 | L71: 20
D72: 1 блюдо | E72: Суп картофельный с макаронными изделиями на мкб со сметаной | F72: 275 | G72: 8 | H72: 6 | I72: 27 | J72: 200 | K72: 112 | L72: 22
D73: 2 блюдо | E73: Гуляш из говядины с соусом | F73: 100 | G73: 11 | H73: 7 | I73: 13 | J73: 162 | L73: 35
D74: гарнир | E74: Каша пшеничная рассыпчатая | F74: 150 | G74: 6 | H74: 8 | I74: 22 | J74: 137 | L74: 17
D75: напиток | E75: Чай с сахаром и яблоками | F75: 200 | G75: 0 | H75: 1 | I75: 16 | J75: 65 | K75: 359 | L75: 16
D76: хлеб бел.
D77: хлеб черн. | E77: Хлеб ржано-пшеничный | F77: 60 | G77: 5 | H77: 9 | I77: 42 | J77: 77 | L77: 13
D80: итого | F80: =SUM(F71:F79) -> 885 | G80: =SUM(G71:G79) -> 31 | H80: =SUM(H71:H79) -> 37 | I80: =SUM(I71:I79) -> 122 | J80: =SUM(J71:J79) -> 706 | L80: =SUM(L71:L79) -> 123
A81: =A63 -> 1 | B81: =B63 -> 4 | C81: Итого за день: | F81: =F70+F80 -> 1480 | G81: =G70+G80 -> 44 | H81: =H70+H80 -> 46 | I81: =I70+I80 -> 194 | J81: =J70+J80 -> 1179 | L81: =L70+L80 -> 220.56
A82: 1 | B82: 5 | C82: Завтрак | D82: закуска | E82: Салат из свежих овощей | F82: 60 | G82: 0.00 | H82: 3.00 | I82: 4.00 | J82: 39.00 | L82: 15
D83: 2 блюдо | E83: Тефтели мясные | F83: 90 | G83: 15 | H83: 12 | I83: 16 | J83: 209 | K83: 279 | L83: 30
D84: гарнир | E84: Гарнир сложный | F84: 150 | G84: 5.00 | H84: 5.00 | I84: 23.00 | J84: 157.00 | K84: 321.312 | L84: 24.56
D85: гор.напиток | E85: Чай с лимоном | F85: 200 | G85: 0 | H85: 0 | I85: 16 | J85: 62 | K85: 377 | L85: 13
D86: хлеб бел. | E86: Хлеб пшеничный | F86: 40 | G86: 0.00 | H86: 0.00 | I86: 0.00 | J86: 94 | L86: 13
D87: фукт | E87: фрукт | F87: 100 | G87: 1 | H87: 0 | I87: 15 | J87: 58 | L87: 15
D89: итого | F89: =SUM(F82:F88) -> 640 | G89: =SUM(G82:G88) -> 21 | H89: =SUM(H82:H88) -> 20 | I89: =SUM(I82:I88) -> 74 | J89: =SUM(J82:J88) -> 619 | L89: =SUM(L82:L88) -> 110.56
A90: =A82 -> 1 | B90: =B82 -> 5 | C90: Обед | D90: закуска | E90: Салат из белокочанной капусты | F90: 60 | G90: 2 | H90: 6 | I90: 9 | J90: 89 | K90: 45 | L90: 20
D91: 1 блюдо | E91: Суп картофельный с клецкаи на мкб со сметаной | F91: 250 | G91: 7 | H91: 8 | I91: 24 | J91: 177 | K91: 108 | L91: 22
D92: 2 блюдо | E92: Плов из птицы | F92: 180 | G92: 16 | H92: 20 | I92: 39 | J92: 399 | K92: 321 | L92: 35
D93: гарнир
D94: напиток | E94: Кампот из свежих фруктов | F94: 200 | G94: 3 | H94: 7 | I94: 21 | J94: 144 | K94: 342 | L94: 17
D95: хлеб бел.
D96: хлеб черн. | E96: Хлеб ржано-пшеничный | F96: 60 | G96: 0 | H96: 1 | I96: 16 | J96: 66 | L96: 16
D99: итого | F99: =SUM(F90:F98) -> 750 | G99: =SUM(G90:G98) -> 28 | H99: =SUM(H90:H98) -> 42 | I99: =SUM(I90:I98) -> 109 | J99: =SUM(J90:J98) -> 875 | L99: =SUM(L90:L98) -> 110
A100: =A82 -> 1 | B100: =B82 -> 5 | C100: Итого за день: | F100: =F89+F99 -> 1390 | G100: =G89+G99 -> 49 | H100: =H89+H99 -> 62 | I100: =I89+I99 -> 183 | J100: =J89+J99 -> 1494 | L100: =L89+L99 -> 220.56
A101: 1 | B101: 6 | C101: Завтрак | D101: сладкое | E101: Запекннка из творога со сгущенкой | F101: 100 | G101: 13 | H101: 9 | I101: 12 | J101: 163 | K101: 223 | L101: 25
D102: фрукт | E102: фрукт | F102: 100 | G102: 1 | H102: 0 | I102: 15 | J102: 58 | L102: 28.56
D103: гор.блюдо | E103: Каша манная молочная со сливочным маслом | F103: 250 | G103: 9 | H103: 13 | I103: 29 | J103: 243 | K103: 181 | L103: 30
D104: гор.напиток | E104: Чай с сахаром | F104: 15 | G104: 0 | H104: 0 | I104: 15 | J104: 54 | K104: 376 | L104: 15
D105: хлеб бел. | E105: Хлеб пшеничный | F105: 40 | G105: 3 | H105: 0 | I105: 20 | J105: 83 | L105: 13
D106: хлеб черн.
D108: итого | F108: =SUM(F101:F107) -> 505 | G108: =SUM(G101:G107) -> 26 | H108: =SUM(H101:H107) -> 22 | I108: =SUM(I101:I107) -> 91 | J108: =SUM(J101:J107) -> 601 | L108: =SUM(L101:L107) -> 111.56
A109: =A101 -> 1 | B109: =B101 -> 6 | C109: Обед | D109: закуска | E109: Сыр | F109: 60 | G109: 4 | H109: 4 | I109: 1 | J109: 55 | K109: 15 | L109: 20
D110: 1 блюдо | E110: Щи из свежей капусты с картофелем на мкб со сметаной | F110: 20 | G110: 8 | H110: 9 | I110: 18 | J110: 184 | K110: 88 | L110: 24
D111: 2 блюдо | E111: Котлета из говядины | F111: 90 | G111: 9 | H111: 13 | I111: 12 | J111: 201 | K111: 268 | L111: 22
D112: гарнир | E112: Макароны от варные со сливочным маслом | F112: 150 | G112: 5 | H112: 6 | I112: 34 | J112: 204 | K112: 203 | L112: 17
D113: напиток | E113: Компот из сухофруктов | F113: 200 | G113: 1 | H113: 0 | I113: 18 | J113: 71 | K113: 349 | L113: 16
D114: хлеб бел. | E114: Хлеб ржано пшеничный | F114: 60 | G114: 3 | H114: 0 | I114: 20 | J114: 83 | L114: 10
D115: хлеб черн.
D118: итого | F118: =SUM(F109:F117) -> 580 | G118: =SUM(G109:G117) -> 30 | H118: =SUM(H109:H117) -> 32 | I118: =SUM(I109:I117) -> 103 | J118: =SUM(J109:J117) -> 798 | L118: =SUM(L109:L117) -> 109
A119: =A101 -> 1 | B119: =B101 -> 6 | C119: Итого за день: | F119: =F108+F118 -> 1085 | G119: =G108+G118 -> 56 | H119: =H108+H118 -> 54 | I119: =I108+I118 -> 194 | J119: =J108+J118 -> 1399 | L119: =L108+L118 -> 220.56
A120: 2 | B120: 7 | C120: Завтрак | D120: сладкое | E120: Сырники из творога | F120: 100 | G120: 9 | H120: 6 | I120: 10 | J120: 143 | K120: 219 | L120: 25
D121: гор.блюдо | E121: Каша ячневая молочная со сливочным маслом | F121: 180 | G121: 9 | H121: 6 | I121: 23 | J121: 181 | K121: 173 | L121: 33.56
D122: сладкое
D123: гор.напиток | E123: Чай с сахаром и курягой | F123: 222 | G123: 0 | H123: 2 | I123: 16 | J123: 74 | K123: 377 | L123: 30
D124: хлеб бел. | E124: Хлеб пшеничный | F124: 40 | G124: 3 | H124: 0 | I124: 20 | J124: 94 | L124: 15
D127: итого | F127: =SUM(F120:F126) -> 542 | G127: =SUM(G120:G126) -> 21 | H127: =SUM(H120:H126) -> 14 | I127: =SUM(I120:I126) -> 69 | J127: =SUM(J120:J126) -> 492 | L127: =SUM(L120:L126) -> 103.56
A128: =A120 -> 2 | B128: =B120 -> 7 | C128: Обед | D128: закуска | E128: Помидоры свежие с маслом | F128: 60 | G128: 4 | H128: 4 | I128: 1 | J128: 61 | K128: 23 | L128: 20
D129: 1 блюдо | E129: Суп картофельный с бобовыми (гороховый) на мкб | F129: 250 | G129: 8 | H129: 9 | I129: 18 | J129: 167 | K129: 102 | L129: 24
D130: 2 блюдо | E130: Жаркое из птицы | F130: 180 | G130: 9 | H130: 13 | I130: 12 | J130: 220 | K130: ТТК50 | L130: 40
D131: гарнир
D132: напиток | E132: Кисель ягодный | F132: 200 | G132: 5 | H132: 6 | I132: 34 | J132: 187 | K132: 359 | L132: 17
D133: хлеб бел.
D134: хлеб черн. | E134: Хлеб ржано-пшеничный | F134: 60 | G134: 1 | H134: 0 | I134: 18 | J134: 83 | L134: 16
D137: итого | F137: =SUM(F128:F136) -> 750 | G137: =SUM(G128:G136) -> 27 | H137: =SUM(H128:H136) -> 32 | I137: =SUM(I128:I136) -> 83 | J137: =SUM(J128:J136) -> 718 | L137: =SUM(L128:L136) -> 117
A138: =A120 -> 2 | B138: =B120 -> 7 | C138: Итого за день: | F138: =F127+F137 -> 1292 | G138: =G127+G137 -> 48 | H138: =H127+H137 -> 46 | I138: =I127+I137 -> 152 | J138: =J127+J137 -> 1210 | L138: =L127+L137 -> 220.56
A139: 2 | B139: 8 | C139: Завтрак | D139: фрукты
D140: гарнир
D141: гор.блюдо
D142: гор.напиток
D143: хлеб бел.
D144: хлеб черн.
D146: итого
A147: =A139 -> 2 | B147: 8 | C147: Обед | D147: закуска
D148: 1 блюдо
D149: 2 блюдо
D150: гарнир
D151: напиток
D152: хлеб бел.
D153: хлеб черн.
D156: итого
A157: =A139 -> 2 | B157: =B139 -> 8 | C157: Итого за день:
A158: 2 | B158: 9 | C158: Завтрак | D158: закуска
D159: гор.блюдо
D160: гор.напиток
D161: хлеб бел.
D162: хлеб черн.
D165: итого
A166: =A158 -> 2 | B166: =B158 -> 9 | C166: Обед | D166: закуска
D167: 1 блюдо
D168: 2 блюдо
D169: гарнир
D170: напиток
D171: хлеб бел.
D172: хлеб черн.
D175: итого
A176: =A158 -> 2 | B176: =B158 -> 9 | C176: Итого за день:
A177: 2 | B177: 10 | C177: Завтрак | D177: закуска
D178: гарнир
D179: гор.блюдо
D180: гор.напиток
D181: хлеб бел.
D182: хлеб черн.
D184: итого
A185: =A177 -> 2 | B185: =B177 -> 10 | C185: Обед | D185: закуска
D186: 1 блюдо
D187: 2 блюдо
D188: гарнир
D189: напиток
D190: хлеб бел.
D191: хлеб черн.
D194: итого
A195: =A177 -> 2 | B195: =B177 -> 10 | C195: Итого за день:
A196: 2 | B196: 11 | C196: Завтрак | D196: фрукты
D197: гарнир
D198: гор.блюдо
D199: гор.напиток
D200: хлеб бел.
D201: хлеб черн.
D203: итого
A204: =A196 -> 2 | B204: =B196 -> 11 | C204: Обед | D204: закуска
D205: 1 блюдо
D206: 2 блюдо
D207: гарнир
D208: напиток
D209: хлеб бел.
D210: хлеб черн.
D213: итого
A214: =A196 -> 2 | B214: =B196 -> 11 | C214: Итого за день:
A215: 2 | B215: 12 | C215: Завтрак | D215: закуска
D216: гарнир
D217: гор.напиток
D218: хлеб бел.
D219: хлеб черн.
D222: итого
A223: =A215 -> 2 | B223: =B215 -> 12 | C223: Обед | D223: закуска
D224: 1 блюдо
D225: 2 блюдо
D226: гарнир
D227: напиток
D228: хлеб бел.
D229: хлеб черн.
D232: итого | F232: =SUM(F223:F231) -> 0 | G232: =SUM(G223:G231) -> 0 | H232: =SUM(H223:H231) -> 0 | I232: =SUM(I223:I231) -> 0 | J232: =SUM(J223:J231) -> 0 | L232: =SUM(L223:L231) -> 0
A233: =A215 -> 2 | B233: =B215 -> 12 | C233: Итого за день: | F233: =F222+F232 -> 0 | G233: =G222+G232 -> 0 | H233: =H222+H232 -> 0 | I233: =I222+I232 -> 0 | J233: =J222+J232 -> 0 | L233: =L222+L232 -> 0
C234: Среднее значение за период: | F234: =(F24+F43+F62+F81+F100+F119+F138+F157+F176+F195+F214+F233)/(IF(F24=0, 0, 1)+IF(F43=0, 0, 1)+IF(F62=0, 0, 1)+IF(F81=0, 0, 1)+IF(F100=0, 0, 1)+IF(F119=0, 0, 1)+IF(F138=0, 0, 1)+IF(F157=0, 0, 1)+IF(F176=0, 0, 1)+IF(F195=0, 0, 1)+IF(F214=0, 0, 1)+IF(F233=0, 0, 1)) -> 1339.142857 | G234: =(G24+G43+G62+G81+G100+G119+G138+G157+G176+G195+G214+G233)/(IF(G24=0, 0, 1)+IF(G43=0, 0, 1)+IF(G62=0, 0, 1)+IF(G81=0, 0, 1)+IF(G100=0, 0, 1)+IF(G119=0, 0, 1)+IF(G138=0, 0, 1)+IF(G157=0, 0, 1)+IF(G176=0, 0, 1)+IF(G195=0, 0, 1)+IF(G214=0, 0, 1)+IF(G233=0, 0, 1)) -> 48.14285714 | H234: =(H24+H43+H62+H81+H100+H119+H138+H157+H176+H195+H214+H233)/(IF(H24=0, 0, 1)+IF(H43=0, 0, 1)+IF(H62=0, 0, 1)+IF(H81=0, 0, 1)+IF(H100=0, 0, 1)+IF(H119=0, 0, 1)+IF(H138=0, 0, 1)+IF(H157=0, 0, 1)+IF(H176=0, 0, 1)+IF(H195=0, 0, 1)+IF(H214=0, 0, 1)+IF(H233=0, 0, 1)) -> 50.57142857 | I234: =(I24+I43+I62+I81+I100+I119+I138+I157+I176+I195+I214+I233)/(IF(I24=0, 0, 1)+IF(I43=0, 0, 1)+IF(I62=0, 0, 1)+IF(I81=0, 0, 1)+IF(I100=0, 0, 1)+IF(I119=0, 0, 1)+IF(I138=0, 0, 1)+IF(I157=0, 0, 1)+IF(I176=0, 0, 1)+IF(I195=0, 0, 1)+IF(I214=0, 0, 1)+IF(I233=0, 0, 1)) -> 176.1428571 | J234: =(J24+J43+J62+J81+J100+J119+J138+J157+J176+J195+J214+J233)/(IF(J24=0, 0, 1)+IF(J43=0, 0, 1)+IF(J62=0, 0, 1)+IF(J81=0, 0, 1)+IF(J100=0, 0, 1)+IF(J119=0, 0, 1)+IF(J138=0, 0, 1)+IF(J157=0, 0, 1)+IF(J176=0, 0, 1)+IF(J195=0, 0, 1)+IF(J214=0, 0, 1)+IF(J233=0, 0, 1)) -> 1308.285714 | L234: =(L24+L43+L62+L81+L100+L119+L138+L157+L176+L195+L214+L233)/(IF(L24=0, 0, 1)+IF(L43=0, 0, 1)+IF(L62=0, 0, 1)+IF(L81=0, 0, 1)+IF(L100=0, 0, 1)+IF(L119=0, 0, 1)+IF(L138=0, 0, 1)+IF(L157=0, 0, 1)+IF(L176=0, 0, 1)+IF(L195=0, 0, 1)+IF(L214=0, 0, 1)+IF(L233=0, 0, 1)) -> 220.56
